[Event "44th Chess Olympiad Women 2022"]
[Site "Chennai"]
[Date "2022.08.05"]
[Round "7.23"]
[White "Morales Flores, Monserrat"]
[Black "Masoumi, Sahar"]
[Result "1-0"]
[ECO "B45"]
[WhiteElo "1946"]
[BlackElo "1956"]
[Annotator "TA"]
[PlyCount "45"]
[EventDate "2022.07.29"]
[EventType "team-tourn"]
[EventCountry "IND"]
[SourceTitle "playchess.com"]
[Source "ChessBase"]
[SourceQuality "1"]
[WhiteTeam "Chile"]
[BlackTeam "Iran"]
[WhiteTeamCountry "CHI"]
[BlackTeamCountry "IRI"]
[TimeControl "40/5400+30:1800+30"]

{[%evp 19,45,-10,75,60,75,54,70,79,157,159,158,164,140,141,149,145,386,190,191,191,387,374,29994,29995,29995,29996,29996,29997]} 1. e4 {[%emt 0:00:11]} c5 {[%emt 0:00:06]} 2. Nf3 {[%emt 0:00:11]} e6 {[%emt 0:00:08]} 3. d4 {[%emt 0:00:22]} cxd4 {[%emt 0:00:06]} 4. Nxd4 {[%emt 0:00:04]} Nf6 {[%emt 0:00:09]} 5. Nc3 {[%emt 0:00:17]} Nc6 {[%emt 0:00:08]} 6. Be2 {[%emt 0:00:37]} Bb4 {[%emt 0:00:10]} 7. O-O {[%emt 0:01:53]} Bxc3 {[%emt 0:00:11]} 8. bxc3 {[%emt 0:00:04]} Nxe4 {[%emt 0:00:11]} 9. Qd3 {[%emt 0:00:37] 9.Nxc6 gains popularity.} d5 {[%emt 0:01:43]} 10. Ba3 {[%emt 0:03:08]} a6 {[%emt 0:21:53]} (10... Ne7 $11) 11. Nxc6 $16 {[%emt 0:18:08] B45: Sicilian Four Knights.} bxc6 {[%emt 0:00:07]} 12. c4 {[%emt 0:00:42]} Qa5 {[%emt 0:04:03]} 13. Bf3 {[%emt 0:18:43] Strongly threatening cxd5. A strong pair of Bishops. White is slightly better.} Nd2 {[%emt 0:19:29]} (13... f5 $142) 14. cxd5 $1 {[%emt 0:06:14]} cxd5 {[%emt 0:03:42]} (14... Nxf1 $2 15. dxe6 fxe6 16. Bxc6+ (16. Kxf1 Kf7 $18) (16. Qxf1 Qc3 $16) 16... Kf7 17. Bxa8 $18) 15. Rfd1 {[%emt 0:13:17]} Nxf3+ {[%emt 0:10:57]} (15... Nc4 $2 16. Qxc4 $1 {[%mdl 512]} dxc4 17. Bc6+ Bd7 18. Rxd7 Qxa3 19. Rd3+ Ke7 20. Rxa3 $18) 16. Qxf3 {[%emt 0:00:06] [#] Threatens to win with c4.} f6 $146 {[%emt 0:00:55]} ({Predecessor:} 16... Ra7 17. c4 dxc4 18. Qc6+ Bd7 19. Qd6 Bc8 20. Qd4 Rd7 21. Qxg7 Qxa3 22. Qxh8+ Qf8 23. Qxh7 {1-0 (30) Gwaze,R (2335)-Crouch,C (2392) Glasgow 2003}) 17. c4 $1 {[%emt 0:03:29][%cal Rc4d5] White is more active.} Bb7 {[%emt 0:09:52]} (17... Bd7 $16) 18. Qg3 {[%emt 0:12:01]} (18. Rab1 $142 Bc6 19. Qh5+ g6 20. Qh3) 18... Kf7 $18 {[%emt 0:02:51]} 19. Rab1 $40 {[%emt 0:01:43][%mdl 128] Black is in trouble.} ({Resist} 19. Qd6 $6 Rhc8 $16) 19... Bc6 {[%emt 0:05:59]} (19... Bc8) 20. cxd5 {[%emt 0:02:25]} (20. Qd6 Rhc8 $14) 20... Bxd5 {[%emt 0:00:47] [#]} (20... exd5 $18 21. Rdc1 (21. Qd6 Rac8 $11) 21... Bd7) 21. Rb7+ $3 {[%emt 0:01:18][%mdl 576] Skewer, Decoy. White mates.} Bxb7 {[%emt 0:09:22]} 22. Rd7+ {[%emt 0:00:16][%mdl 64] Skewer, Double Attack} Ke8 {[%emt 0:00:09]} 23. Re7+ {[%emt 0:00:05] Black did not feel at home in the position after the opening.  Weighted Error Value: White=0.12 (very precise) /Black=1.01} 1-0

[Event "44th Chess Olympiad Women 2022"]
[Site "Chennai"]
[Date "2022.08.05"]
[Round "7.23"]
[White "Toro Pradenas, Maria Jose"]
[Black "Asgharzadeh, Mitra"]
[Result "0-1"]
[ECO "C11"]
[WhiteElo "1945"]
[BlackElo "1988"]
[Annotator "TA"]
[PlyCount "72"]
[EventDate "2022.07.29"]
[EventType "team-tourn"]
[EventCountry "IND"]
[SourceTitle "playchess.com"]
[Source "ChessBase"]
[SourceQuality "1"]
[WhiteTeam "Chile"]
[BlackTeam "Iran"]
[WhiteTeamCountry "CHI"]
[BlackTeamCountry "IRI"]
[TimeControl "40/5400+30:1800+30"]

{[%evp 15,72,2,10,-5,-4,2,25,-18,31,21,42,33,41,34,40,35,79,82,60,31,48,29,22,22,37,20,32,23,28,31,14,19,22,2,10,-542,-519,-751,-750,-746,-747,-734,-719,-746,-719,-741,-729,-750,-747,-736,-717,-1295,-1277,-29987,-29988,-29991,-29992,-29992,-29993]} 1. e4 {[%emt 0:00:02]} e6 {[%emt 0:00:08]} 2. d4 {[%emt 0:00:10]} d5 {[%emt 0:00:10]} 3. Nc3 {[%emt 0:00:08]} Nf6 {[%emt 0:00:11]} 4. e5 {[%emt 0:00:20]} Nfd7 {[%emt 0:00:03]} 5. f4 {[%emt 0:00:03]} c5 {[%emt 0:00:11]} 6. Nf3 {[%emt 0:00:11]} Nc6 {[%emt 0:00:07]} 7. Be3 {[%emt 0:00:23]} Be7 {[%emt 0:00:10]} 8. Qd2 {[%emt 0:09:23]} O-O {[%emt 0:00:21]} 9. Bd3 {[%emt 0:07:23] C11: French: Classical System: 4 e5 and 4 Bg5 dxe4.} b6 {[%emt 0:03:12]} 10. O-O {[%emt 0:00:52]} f5 {[%emt 0:00:23]} 11. exf6 {[%emt 0:24:12] White has an edge.} Bxf6 {[%emt 0:07:22]} (11... Nxf6 $11 12. b3 Ng4) 12. Bb5 $14 {[%emt 0:05:05] [#]} Nxd4 $146 {[%emt 0:10:42]} ({Predecessor:} 12... Bb7 13. Bxc6 Bxc6 14. Ne5 Qc7 15. Nxc6 Qxc6 16. Ne2 g6 17. c3 Bg7 18. Rf3 Nf6 {1-0 (47) Strobl,S (1633)-Kristoferitsch,D (1820) Playchess.com INT 2020}) 13. Nxd4 {[%emt 0:02:36]} cxd4 {[%emt 0:00:10]} 14. Bxd4 {[%emt 0:00:04]} Bb7 {[%emt 0:10:29]} 15. Rae1 {[%emt 0:05:54]} Bxd4+ {[%emt 0:06:08]} 16. Qxd4 {[%emt 0:00:07]} Nc5 {[%emt 0:00:42]} 17. b4 {[%emt 0:11:32]} Ne4 {[%emt 0:00:54]} 18. Bd3 {[%emt 0:00:18]} Rc8 {[%emt 0:05:57]} 19. Ne2 {[%emt 0:14:19][%cal Bc3e2,Be2d4,Bd4e6][%mdl 32]} Qh4 {[%emt 0:11:46]} 20. Qe5 {[%emt 0:04:33]} Qe7 {[%emt 0:19:51]} 21. Nd4 {[%emt 0:00:56]} Qxb4 {[%emt 0:08:46]} 22. Nxe6 {[%emt 0:00:47][%csl Ge6][%cal Re5g7]} Rf6 {[%emt 0:02:17]} 23. f5 {[%emt 0:05:20][%cal Oc2c4]} Qc3 {[%emt 0:07:17] Prevents c4.} 24. Qf4 {[%emt 0:01:13]} Re8 {[%emt 0:02:15]} 25. Qg4 $2 {[%emt 0:02:35][%mdl 8192] [#] Loses the game.} (25. Qc7 $11 {and White is okay.} Qxc7 26. Nxc7) 25... Rfxe6 $1 $19 {[%emt 0:01:51][%mdl 512]} 26. fxe6 {[%emt 0:00:09] aiming for Qh5.} (26. Qf4 R6e7) 26... Qd4+ {[%emt 0:00:34]} 27. Kh1 {[%emt 0:01:11]} Nf2+ {[%emt 0:00:16][%mdl 64] Discovered Attack} 28. Rxf2 {[%emt 0:00:06]} Qxg4 {[%emt 0:00:05]} 29. e7 {[%emt 0:04:20]} Qg5 {[%emt 0:01:02]} 30. Rf5 {[%emt 0:00:26] [#]} Qh4 $1 {[%emt 0:01:07]} ({Stronger than} 30... Rxe7 31. Ref1 Qxf5 32. Rxf5 $17) 31. g3 {[%emt 0:00:13]} Qb4 {[%emt 0:00:23]} 32. Rfe5 {[%emt 0:00:57]} Qc5 {[%emt 0:00:44] Strongly threatening ...Qf2.} 33. Bf5 {[%emt 0:00:20]} Qf2 {[%emt 0:00:40] ( -> ...d4+)} 34. Be6+ {[%emt 0:00:45]} Kh8 {[%emt 0:00:02] Black mates.} 35. Bf5 {[%emt 0:00:18]} d4+ {[%emt 0:00:13]} 36. Be4 {[%emt 0:00:15]} Qxe1+ {[%emt 0:00:11] Weighted Error Value: White=0.87/Black=0.08 (flawless)} 0-1

[Event "44th Chess Olympiad Women 2022"]
[Site "Chennai"]
[Date "2022.08.05"]
[Round "7.24"]
[White "Eftovska, Lea"]
[Black "Vidic, Teja"]
[Result "0-1"]
[ECO "B23"]
[WhiteElo "1634"]
[BlackElo "2099"]
[Annotator "TA"]
[PlyCount "66"]
[EventDate "2022.07.29"]
[EventType "team-tourn"]
[EventCountry "IND"]
[SourceTitle "playchess.com"]
[Source "ChessBase"]
[SourceQuality "1"]
[WhiteTeam "Macedonia"]
[BlackTeam "Slovenia"]
[WhiteTeamCountry "MKD"]
[BlackTeamCountry "SLO"]
[TimeControl "40/5400+30:1800+30"]

{[%evp 15,66,-9,-10,-16,-19,-47,-29,-45,-17,-32,-19,-21,-15,-9,-16,-12,-6,-59,-50,-53,-69,-60,-32,-48,0,0,0,-47,-45,-96,-92,-112,-87,-95,-95,-95,-95,-83,-88,-89,-84,-152,-169,-222,-221,-215,-209,-266,-225,-395,-280,-6000,-2050]} 1. e4 {[%emt 0:00:05]} c5 {[%emt 0:00:13]} 2. Nc3 {[%emt 0:00:07]} d6 {[%emt 0:00:05]} 3. f4 {[%emt 0:00:06]} g6 {[%emt 0:00:07]} 4. Nf3 {[%emt 0:00:08]} Bg7 {[%emt 0:00:06]} 5. Bb5+ {[%emt 0:00:17]} Bd7 {[%emt 0:00:07]} 6. Bxd7+ {[%emt 0:00:12]} Qxd7 {[%emt 0:00:06]} 7. d3 {[%emt 0:00:17]} Nc6 {[%emt 0:01:43]} 8. O-O {[%emt 0:01:42]} e6 {[%emt 0:00:04]} 9. a3 {[%emt 0:03:35] B23: Closed Sicilian: Lines without g3.} Nge7 {[%emt 0:00:32]} 10. Qe1 {[%emt 0:01:02]} O-O {[%emt 0:01:48]} (10... Nd4 $5 {[%cal Rd4c2]} 11. Qf2 Nxf3+ 12. Qxf3 f5 $11) 11. Bd2 {[%emt 0:07:48] Black has an edge.} Nd4 {[%emt 0:08:01] [#]} 12. Nxd4 $146 {[%emt 0:02:14]} ({Predecessor:} 12. Rc1 b5 13. Qf2 a5 14. Be3 Nxf3+ 15. Qxf3 b4 16. axb4 axb4 17. Nd1 Ra2 18. Rb1 {½-½ (86) Setiabudi,M (1397)-Cardenas,E (1480) Cammeray 2011}) 12... cxd4 {[%emt 0:00:05]} 13. Ne2 {[%emt 0:00:21]} Rac8 {[%emt 0:03:49]} 14. Rc1 {[%emt 0:09:52]} Qb5 {[%emt 0:06:34]} 15. Bb4 {[%emt 0:03:30]} Rfd8 {[%emt 0:12:10]} 16. Rf3 {[%emt 0:12:44]} (16. b3 $11) 16... Nc6 $15 {[%emt 0:08:43]} 17. c4 {[%emt 0:05:51]} dxc3 $1 {[%emt 0:01:35]} 18. Bxc3 {[%emt 0:02:27]} Qb6+ {[%emt 0:06:45]} 19. Kh1 {[%emt 0:03:31]} Nd4 {[%emt 0:05:13]} (19... d5 $15) 20. Nxd4 $11 {[%emt 0:02:47]} Bxd4 {[%emt 0:00:06]} 21. Bxd4 {[%emt 0:03:56]} (21. f5 $11) 21... Qxd4 $15 {[%emt 0:00:14]} 22. Rc3 {[%emt 0:08:33]} (22. Qd2 $15) 22... d5 $17 {[%emt 0:05:33] And now ...dxe4 would win.} 23. exd5 {[%emt 0:10:38]} Qxd5 {[%emt 0:02:52]} 24. Qc1 {[%emt 0:01:12]} Rxc3 $40 {[%emt 0:01:57][%mdl 128] Black wants a kill. Black is more active.} 25. Qxc3 {[%emt 0:02:34][%mdl 4096] Endgame KQR-KQR} h5 {[%emt 0:00:34]} 26. h3 {[%emt 0:00:36]} b5 {[%emt 0:03:46]} 27. Qa5 {[%emt 0:03:06]} Qd7 {[%emt 0:02:17]} 28. b3 {[%emt 0:07:27] [#]} (28. Kh2 $142) 28... Rc8 $1 {[%emt 0:04:09]} 29. Qd2 {[%emt 0:03:41] [#]} (29. Kh2 $142) 29... Qd4 $1 $19 {[%emt 0:00:30]} 30. Kh2 {[%emt 0:02:39]} Rc3 {[%emt 0:00:46]} 31. Qd1 {[%emt 0:00:16]} a5 {[%emt 0:01:45]} 32. Kg3 $2 {[%emt 0:00:55]} (32. Qe1) 32... Kg7 {[%emt 0:04:17] aiming for ...e5.} 33. Rf2 $2 {[%emt 0:02:17]} (33. Qe1) 33... Rxd3+ {[%emt 0:00:18] Weighted Error Value: White=0.56/Black=0.16 (very precise)} (33... h4+ $142 34. Kh2 Qxf2) 0-1

[Event "44th Chess Olympiad Women 2022"]
[Site "Chennai"]
[Date "2022.08.05"]
[Round "7.25"]
[White "Barbier, Astrid"]
[Black "Pachon, Adriana"]
[Result "1-0"]
[ECO "C78"]
[WhiteElo "1879"]
[BlackElo "2007"]
[Annotator "TA"]
[PlyCount "85"]
[EventDate "2022.07.29"]
[EventType "team-tourn"]
[EventCountry "IND"]
[SourceTitle "playchess.com"]
[Source "ChessBase"]
[SourceQuality "1"]
[WhiteTeam "Belgium"]
[BlackTeam "Colombia"]
[WhiteTeamCountry "BEL"]
[BlackTeamCountry "COL"]
[TimeControl "40/5400+30:1800+30"]

{[%evp 13,85,15,14,9,28,-6,20,-1,25,18,19,18,31,14,27,1,9,-32,2,-2,37,20,39,19,19,18,12,18,39,39,48,54,43,33,39,49,101,87,125,97,137,106,214,209,349,349,480,481,571,586,537,568,582,570,563,552,559,587,587,576,577,553,582,574,581,568,868,856,847,835,911,902,833,814]} 1. e4 {[%emt 0:00:03]} e5 {[%emt 0:00:12]} 2. Nf3 {[%emt 0:00:06]} Nc6 {[%emt 0:00:09]} 3. Bb5 {[%emt 0:00:07][%cal Bf1b5,Bb5a4,Ba4b3][%mdl 32]} a6 {[%emt 0:00:14]} 4. Ba4 {[%emt 0:00:06]} Nf6 {[%emt 0:00:07]} 5. d3 {[%emt 0:00:07]} b5 {[%emt 0:00:22]} 6. Bb3 {[%emt 0:00:06]} Bc5 {[%emt 0:00:28]} 7. O-O {[%emt 0:02:38]} d6 {[%emt 0:00:37]} 8. c3 {[%emt 0:00:15] C78: Ruy Lopez: Archangelsk and Möller Defences.} Bb6 {[%emt 0:01:02] 8...h6 is becoming the main line.} 9. Be3 {[%emt 0:03:42]} (9. a4 $5 {[%cal Ra4b5]}) 9... Rb8 {[%emt 0:05:38]} 10. Nbd2 {[%emt 0:04:22] [#] The position is equal.} Bg4 $146 {[%emt 0:03:42]} ({Predecessor:} 10... O-O 11. h3 Ne7 12. d4 Ng6 13. Bc2 c5 14. dxe5 dxe5 15. c4 Qe7 16. Qe2 Bd7 {½-½ (54) Thipsay,P (2376)-Agrest,I (2284) Chess.com INT 2020}) 11. h3 {[%emt 0:02:39]} Bh5 {[%emt 0:01:10]} 12. a4 {[%emt 0:03:22]} O-O {[%emt 0:03:39]} 13. Bxb6 {[%emt 0:03:12]} Rxb6 {[%emt 0:00:47]} 14. a5 {[%emt 0:00:12]} Rb7 {[%emt 0:03:44]} 15. Qc2 {[%emt 0:02:12]} Qe7 {[%emt 0:11:03]} 16. Rfe1 {[%emt 0:02:08]} Bg6 {[%emt 0:03:29]} 17. Nh4 {[%emt 0:11:36]} Na7 {[%emt 0:10:25]} 18. Nxg6 {[%emt 0:06:13]} hxg6 {[%emt 0:00:07]} 19. Nf1 {[%emt 0:00:06]} c5 {[%emt 0:03:04]} 20. Ne3 {[%emt 0:00:26]} Rc8 {[%emt 0:00:57]} 21. Nd5 {[%emt 0:03:16]} Nxd5 {[%emt 0:00:32]} 22. Bxd5 {[%emt 0:00:04]} Nc6 {[%emt 0:00:45]} 23. Qe2 {[%emt 0:03:03]} Rbc7 {[%emt 0:02:21]} 24. Qg4 {[%emt 0:01:20]} Kh7 {[%emt 0:08:18] White stays focused until the end.} ({Black should try} 24... Kf8 $1 $14) 25. Re3 {[%emt 0:03:16]} Nd8 {[%emt 0:00:41]} 26. Rf1 {[%emt 0:03:13] 0x0.0016827156d6dp-1022s more active pieces.} Ne6 {[%emt 0:05:02]} 27. g3 $1 {[%emt 0:01:41][%cal Bg2g3,Bg3f4,Bf4f5][%mdl 32] Prevents Nf4.} c4 {[%emt 0:02:30]} (27... Rd7 $16) 28. f4 $1 $18 {[%emt 0:05:20]} exf4 {[%emt 0:03:30]} (28... Re8 {was necessary.} 29. dxc4 bxc4) 29. gxf4 {[%emt 0:01:13] Black must now prevent Rg3.} cxd3 {[%emt 0:00:09] [#]} 30. f5 $1 {[%emt 0:06:29] White is clearly winning.} gxf5 {[%emt 0:16:28]} 31. exf5 {[%emt 0:04:25]} Qg5 {[%emt 0:00:22]} 32. Qxg5 {[%emt 0:01:19]} Nxg5 {[%emt 0:00:05]} 33. h4 {[%emt 0:00:05]} Rc5 {[%emt 0:03:39]} 34. Bb3 {[%emt 0:05:46]} Re5 {[%emt 0:02:21]} 35. Rxe5 {[%emt 0:02:39]} Nh3+ {[%emt 0:00:14]} 36. Kg2 {[%emt 0:03:25]} dxe5 {[%emt 0:01:26]} 37. Kxh3 {[%emt 0:00:06][%mdl 4096] Endgame KRB-KR} e4 {[%emt 0:04:14]} 38. Re1 {[%emt 0:03:56]} Re8 {[%emt 0:00:20] [#]} 39. Re3 $1 {[%emt 0:00:39]} f6 {[%emt 0:05:02]} 40. Kg3 {[%emt 0:01:14]} g6 {[%emt 0:00:26]} 41. Kf4 {[%emt 0:33:24]} gxf5 {[%emt 0:30:30]} 42. Kxf5 {[%emt 0:02:04]} Re5+ {[%emt 0:00:00]} 43. Kxf6 {[%emt 0:00:00] Weighted Error Value: White=0.05 (flawless) /Black=0.29 (precise)} 1-0

[Event "44th Chess Olympiad Women 2022"]
[Site "Chennai"]
[Date "2022.08.05"]
[Round "7.26"]
[White "Phan, Nguyen Mai Chi"]
[Black "Maklakova, Nellija"]
[Result "1-0"]
[ECO "D02"]
[WhiteElo "2139"]
[BlackElo "1819"]
[Annotator "TA"]
[PlyCount "57"]
[EventDate "2022.07.29"]
[EventType "team-tourn"]
[EventCountry "IND"]
[SourceTitle "playchess.com"]
[Source "ChessBase"]
[SourceQuality "1"]
[WhiteTeam "Australia"]
[BlackTeam "Latvia"]
[WhiteTeamCountry "AUS"]
[BlackTeamCountry "LAT"]
[TimeControl "40/5400+30:1800+30"]

{[%evp 9,57,29,31,21,36,31,41,8,28,28,26,17,18,31,42,39,50,48,92,93,96,78,156,162,152,118,129,120,250,176,162,112,187,188,167,155,220,210,220,201,239,237,300,276,381,384,516,469,1115,1093]} 1. Nf3 {[%emt 0:00:09]} d5 {[%emt 0:00:47]} 2. d4 {[%emt 0:00:16]} e6 {[%emt 0:00:14]} 3. e3 {[%emt 0:00:37]} c6 {[%emt 0:00:16]} 4. Bd3 {[%emt 0:00:18]} Nd7 {[%emt 0:02:09]} 5. b3 {[%emt 0:00:40]} Bd6 {[%emt 0:02:35]} 6. Bb2 {[%emt 0:00:46] D02: 1 d4 d5 2 Nf3 sidelines, including 2...Nf6 3 g3 and 2...Nf6 3 Bf4.} f5 {[%emt 0:03:25]} 7. c4 {[%emt 0:08:47]} Ngf6 {[%emt 0:00:45] [#]} 8. Qe2 $146 {[%emt 0:10:15] White is slightly better.} ({Predecessor:} 8. Nbd2 Ne4 9. Bxe4 fxe4 10. Ne5 O-O 11. O-O Rf5 12. g4 Rf6 13. f3 exf3 14. Rxf3 Rxf3 15. Qxf3 Nxe5 16. dxe5 {0-1 (43) Calderon Guerra,O (1247)-Ruiz Jaraba,V (1850) Pereira 2022}) 8... O-O {[%emt 0:04:48]} 9. cxd5 {[%emt 0:03:41]} cxd5 {[%emt 0:00:47]} 10. O-O {[%emt 0:01:04]} Ne4 {[%emt 0:00:47]} 11. Ba3 {[%emt 0:03:54]} Qe7 {[%emt 0:08:16]} 12. Bxd6 {[%emt 0:14:38]} Qxd6 {[%emt 0:00:18]} 13. Rc1 {[%emt 0:00:25]} Rf6 {[%emt 0:01:28]} 14. Nc3 {[%emt 0:01:34]} a6 {[%emt 0:06:00]} 15. Rc2 {[%emt 0:04:53]} Rh6 {[%emt 0:03:05]} (15... Nf8 $142) 16. Rac1 $16 {[%emt 0:01:38] [#] Hoping for Nxe4.} Qf8 {[%emt 0:02:12]} 17. Nb1 {[%emt 0:06:05]} Ndf6 {[%emt 0:04:41]} 18. Ne5 {[%emt 0:01:25]} g5 {[%emt 0:01:06]} (18... Nd6 $16 19. Qe1 Bd7) 19. Rc7 {[%emt 0:01:08] And now Bxe4 would win.} Nd6 {[%emt 0:00:51]} 20. f4 {[%emt 0:08:07]} (20. g4 $18) 20... gxf4 {[%emt 0:02:48]} (20... g4 $16) 21. exf4 $18 {[%emt 0:00:08]} Nfe8 {[%emt 0:01:11]} 22. R7c2 $36 {[%emt 0:02:05][%mdl 2048] Black is under strong pressure.} Qe7 {[%emt 0:00:53]} (22... Qg7 $16 23. Nd2 b6) 23. a4 {[%emt 0:04:05]} Bd7 {[%emt 0:01:03] [#]} 24. Nd2 $1 {[%emt 0:01:47]} Rd8 {[%emt 0:01:16]} 25. Ndf3 {[%emt 0:01:12]} Ne4 {[%emt 0:00:49]} 26. Qe1 {[%emt 0:01:10]} N8f6 {[%emt 0:17:29]} 27. Rc7 {[%emt 0:01:34]} Nh5 {[%emt 0:08:54]} 28. g3 {[%emt 0:05:31]} Qg7 {[%emt 0:02:12]} (28... Nhf6 $142 29. Rxb7 Qa3 30. Bxa6 Nd6) 29. Rxd7 {[%emt 0:00:29] Weighted Error Value: White=0.12 (very precise) /Black=0.38} 1-0

[Event "44th Chess Olympiad Women 2022"]
[Site "Chennai"]
[Date "2022.08.05"]
[Round "7.26"]
[White "Ter-Avetisjana, Agnesa Stepania"]
[Black "Richards, Heather S"]
[Result "1-0"]
[ECO "C07"]
[WhiteElo "1962"]
[BlackElo "2146"]
[Annotator "TA"]
[PlyCount "107"]
[EventDate "2022.07.29"]
[EventType "team-tourn"]
[EventCountry "IND"]
[SourceTitle "playchess.com"]
[Source "ChessBase"]
[SourceQuality "1"]
[WhiteTeam "Latvia"]
[BlackTeam "Australia"]
[WhiteTeamCountry "LAT"]
[BlackTeamCountry "AUS"]
[TimeControl "40/5400+30:1800+30"]

{[%evp 20,107,18,20,22,25,23,23,33,10,21,14,32,24,30,17,110,106,104,109,137,130,177,170,251,187,274,274,274,274,278,278,307,300,296,254,260,283,264,271,253,259,246,141,149,152,145,150,140,156,160,158,155,144,152,152,152,152,159,122,117,116,599,599,596,592,592,592,29937,9137,29958,29958,29961,29960,29967,29968,29965,29968,29975,29976,29978,29979,29979,29980,29980,29981,29981,29982,29981,29982]} 1. e4 {[%emt 0:00:02]} e6 {[%emt 0:00:07]} 2. d4 {[%emt 0:00:04]} d5 {[%emt 0:00:04]} 3. Nd2 {[%emt 0:00:26]} c5 {[%emt 0:00:05]} 4. exd5 {[%emt 0:00:04]} Qxd5 {[%emt 0:00:10]} 5. Ngf3 {[%emt 0:01:20]} cxd4 {[%emt 0:00:06]} 6. Bc4 {[%emt 0:00:26]} Qd6 {[%emt 0:00:09]} 7. O-O {[%emt 0:01:46]} Nf6 {[%emt 0:00:05]} 8. Nb3 {[%emt 0:01:37]} Nc6 {[%emt 0:00:08]} 9. Nbxd4 {[%emt 0:01:58]} Nxd4 {[%emt 0:00:15]} 10. Nxd4 {[%emt 0:01:36]} Be7 {[%emt 0:00:09]} 11. c3 {[%emt 0:01:08]} O-O {[%emt 0:05:08] C07: French Tarrasch: 3...c5, 4 Ngf3 and 4 exd5 Qxd5.} 12. Qf3 {[%emt 0:01:58]} Qc5 {[%emt 0:16:52]} 13. Bb3 {[%emt 0:02:29]} Bd7 {[%emt 0:09:02] White has an edge.} 14. Re1 {[%emt 0:04:16] [#]} a5 $146 {[%emt 0:01:31]} (14... Bd6 {looks sharper.} 15. h3 e5 16. Ne2 e4) ({Predecessor:} 14... b5 15. Be3 Qh5 16. Qxh5 Nxh5 17. Bd1 Nf6 18. Bf3 Rac8 19. Bf4 Rc5 20. Rad1 Rd8 {1-0 (52) Oral,T (2470)-Vrana,F (2250) Zlin 1996}) 15. Be3 {[%emt 0:04:46][%cal Od4e6]} Qc7 {[%emt 0:04:52]} 16. a4 {[%emt 0:07:05]} Bd6 {[%emt 0:06:02]} 17. h3 {[%emt 0:02:25]} e5 {[%emt 0:00:59]} (17... Bc6 $11 {remains equal.} 18. Nxc6 bxc6) 18. Nb5 $16 {[%emt 0:01:45]} Bxb5 {[%emt 0:00:07]} 19. axb5 {[%emt 0:00:06]} e4 {[%emt 0:03:21]} 20. Qf5 {[%emt 0:01:22]} Rfe8 {[%emt 0:02:44]} (20... Qc8 $16 21. Qxc8 Rfxc8) 21. b6 $18 {[%emt 0:03:00]} Bh2+ {[%emt 0:02:13]} (21... Qe7 $142 22. Rxa5 g6) 22. Kf1 {[%emt 0:01:47]} Qe5 {[%emt 0:00:56]} (22... Qd6 $142 23. Red1 Qb8 24. Rxa5 Re5 25. Rxe5 Bxe5) 23. Qxe5 {[%emt 0:00:09]} Bxe5 {[%emt 0:00:05]} 24. Red1 {[%emt 0:00:18] Inhibits Bd6.} h6 {[%emt 0:00:37]} 25. Ra4 {[%emt 0:04:46]} g5 {[%emt 0:05:07]} 26. g3 {[%emt 0:05:16] Prevents Bf4.} Kg7 {[%emt 0:06:14]} 27. Ke2 {[%emt 0:02:32]} Re7 {[%emt 0:02:48]} 28. Rda1 {[%emt 0:06:50]} Nd7 {[%emt 0:02:58]} 29. Rxa5 {[%emt 0:01:33]} Rxa5 {[%emt 0:01:06]} 30. Rxa5 {[%emt 0:00:09]} f5 {[%emt 0:00:04]} 31. Bd5 {[%emt 0:15:51]} (31. Ba4 $18 {Hoping for Bxd7.} Kf6 32. Ra7) 31... f4 $16 {[%emt 0:03:12]} 32. gxf4 {[%emt 0:00:43] White is more active.} (32. Bxb7 $2 fxe3 33. Kxe3 Nxb6 $19) 32... gxf4 {[%emt 0:00:08]} 33. Bc5 {[%emt 0:00:12]} (33. Bxb7 fxe3 34. Rb5 exf2 35. Kxf2 Bd6 $17) 33... Nxc5 {[%emt 0:04:45]} 34. Rxc5 {[%emt 0:00:10][%cal Od5b7][%mdl 4096] Endgame And now Bxb7! would win. KRB-KRB} Kf6 {[%emt 0:03:18]} 35. Bxe4 {[%emt 0:05:17]} Bxc3 {[%emt 0:00:24]} 36. Rf5+ {[%emt 0:02:50]} ({Don't do} 36. bxc3 Rxe4+ 37. Kf3 Re6 38. Kxf4 Rxb6 $16) 36... Kg7 {[%emt 0:00:09]} 37. bxc3 {[%emt 0:01:10] [#] Black must now prevent Kf3.} Rxe4+ {[%emt 0:00:06] KR-KR} 38. Kf3 {[%emt 0:09:20]} Re6 {[%emt 0:00:53]} 39. Rb5 {[%emt 0:00:57] Threatens to win with c4.} ({But not} 39. Rxf4 Rc6 $16) ({Don't play} 39. Kxf4 Rxb6 40. Ke4 Rb3 $16) 39... Rc6 {[%emt 0:01:27]} 40. Kxf4 {[%emt 0:00:15]} Rxc3 $2 {[%emt 0:00:22][%mdl 8192] [#] This move loses the game for Black.} (40... Kf7 $16 {is tougher.}) 41. Rd5 $1 $18 {[%emt 0:31:06]} Rxh3 {[%emt 0:30:05]} 42. Rd7+ {[%emt 0:00:03]} Kf6 {[%emt 0:00:04]} 43. Rxb7 {[%emt 0:00:06] Rb8 would kill now.} Rh4+ {[%emt 0:00:02]} 44. Kg3 {[%emt 0:01:23]} Rb4 {[%emt 0:00:41]} 45. Rb8 {[%emt 0:00:55] White mates.} Ke7 {[%emt 0:03:06]} 46. f4 {[%emt 0:02:38][%cal Bf2f4,Bf4f5,Bf5f6][%mdl 32]} Kd7 {[%emt 0:00:47]} 47. f5 {[%emt 0:01:22]} Rb3+ {[%emt 0:04:39]} 48. Kg4 {[%emt 0:01:59]} Rb1 {[%emt 0:00:00]} 49. f6 {[%emt 0:00:00]} Rg1+ {[%emt 0:00:00]} 50. Kh3 {[%emt 0:00:00]} Ke6 {[%emt 0:00:00]} 51. b7 {[%emt 0:00:00]} Rh1+ {[%emt 0:02:17]} 52. Kg2 {[%emt 0:00:00]} Rb1 {[%emt 0:00:12]} 53. Re8+ {[%emt 0:00:00]} Kxf6 {[%emt 0:00:05]} 54. b8=Q {[%emt 0:00:00] Weighted Error Value: White=0.06 (flawless) /Black=0.53} 1-0